[Event "Titled Tuesday Blitz May 03 Early 2022"]
[White "Buscar, Michael"]
[Black "Terzi, Alexei"]
[WhiteFideId "2603616"]
[BlackFideId "13505076"]
[WhiteElo "2010"]
[BlackElo "2031"]
[Result "1-0"]
[Round "09"]
[TimeControl "180+1"]
[Date "2022.05.03"]
[WhiteClock "0:00:46"]
[BlackClock "0:00:07"]

1. d4 {[%clk 0:02:57]}  Nf6 {[%clk 0:02:59]} 2. c4 {[%clk 0:02:56]}  c5 {[%clk 0:02:59]} 3. d5 {[%clk 0:02:54]}  b5 {[%clk 0:02:59]} 4. cxb5 {[%clk 0:02:53]}  a6 {[%clk 0:02:59]} 5. bxa6 {[%clk 0:02:52]}  g6 {[%clk 0:02:59]} 6. Nf3 {[%clk 0:02:50]}  Bg7 {[%clk 0:02:59]} 7. g3 {[%clk 0:02:47]}  O-O {[%clk 0:02:48]} 8. Bg2 {[%clk 0:02:46]}  d6 {[%clk 0:02:43]} 9. O-O {[%clk 0:02:44]}  Nbd7 {[%clk 0:02:43]} 10. Nc3 {[%clk 0:02:44]}  Nb6 {[%clk 0:02:43]} 11. Nd2 {[%clk 0:02:44]}  Ne8 {[%clk 0:02:33]} 12. Na4 {[%clk 0:02:37]}  Bxa6 {[%clk 0:02:21]} 13. Nxb6 {[%clk 0:02:34]}  Qxb6 {[%clk 0:02:22]} 14. Rb1 {[%clk 0:02:27]}  Nc7 {[%clk 0:02:13]} 15. Re1 {[%clk 0:02:26]}  Rfb8 {[%clk 0:02:12]} 16. b3 {[%clk 0:02:00]}  Bc8 {[%clk 0:01:44]} 17. Qc2 {[%clk 0:01:57]}  Bf5 {[%clk 0:01:25]} 18. e4 {[%clk 0:01:52]}  Bc8 {[%clk 0:01:20]} 19. Nc4 {[%clk 0:01:52]}  Qa7 {[%clk 0:01:15]} 20. a4 {[%clk 0:01:48]}  Na6 {[%clk 0:00:53]} 21. e5 {[%clk 0:01:35]}  Nb4 {[%clk 0:00:52]} 22. Qe2 {[%clk 0:01:32]}  Bf5 {[%clk 0:00:52]} 23. Be4 {[%clk 0:01:31]}  Nxd5 {[%clk 0:00:44]} 24. Bd2 {[%clk 0:01:16]}  Bxe4 {[%clk 0:00:38]} 25. Qxe4 {[%clk 0:01:15]}  Nb4 {[%clk 0:00:30]} 26. exd6 {[%clk 0:01:12]}  exd6 {[%clk 0:00:24]} 27. Nxd6 {[%clk 0:01:12]}  Rd8 {[%clk 0:00:22]} 28. Bxb4 {[%clk 0:01:05]}  Rxd6 {[%clk 0:00:16]} 29. Bxc5 {[%clk 0:01:01]}  Qxc5 {[%clk 0:00:15]} 30. Qxa8+ {[%clk 0:01:01]}  Bf8 {[%clk 0:00:16]} 31. Re8 {[%clk 0:00:59]}  Rf6 {[%clk 0:00:16]} 32. Rxf8+ {[%clk 0:00:59]}  Qxf8 {[%clk 0:00:15]} 33. Qxf8+ {[%clk 0:00:59]}  Kxf8 {[%clk 0:00:16]} 34. b4 {[%clk 0:01:00]}  Ke8 {[%clk 0:00:16]} 35. b5 {[%clk 0:01:00]}  Kd8 {[%clk 0:00:17]} 36. b6 {[%clk 0:01:00]}  Kc8 {[%clk 0:00:17]} 37. a5 {[%clk 0:01:01]}  Kb8 {[%clk 0:00:16]} 38. a6 {[%clk 0:01:01]}  Re6 {[%clk 0:00:15]} 39. a7+ {[%clk 0:00:58]}  Kb7 {[%clk 0:00:15]} 40. Ra1 {[%clk 0:00:59]}  Re8 {[%clk 0:00:15]} 41. Kg2 {[%clk 0:00:58]}  Ra8 {[%clk 0:00:15]} 42. Rb1 {[%clk 0:00:57]}  Re8 {[%clk 0:00:15]} 43. Kf3 {[%clk 0:00:57]}  f5 {[%clk 0:00:15]} 44. Kf4 {[%clk 0:00:57]}  h6 {[%clk 0:00:16]} 45. f3 {[%clk 0:00:57]}  Rf8 {[%clk 0:00:15]} 46. h4 {[%clk 0:00:57]}  Re8 {[%clk 0:00:15]} 47. h5 {[%clk 0:00:56]}  gxh5 {[%clk 0:00:13]} 48. Kxf5 {[%clk 0:00:56]}  Rf8+ {[%clk 0:00:13]} 49. Ke4 {[%clk 0:00:51]}  Rg8 {[%clk 0:00:14]} 50. Ra1 {[%clk 0:00:50]}  Ka8 {[%clk 0:00:09]} 51. Kf5 {[%clk 0:00:47]}  Rf8+ {[%clk 0:00:08]} 52. Kg6 {[%clk 0:00:47]}  Re8 {[%clk 0:00:05]} 53. b7+ {[%clk 0:00:44]}  Kxb7 {[%clk 0:00:06]} 54. a8=Q+ {[%clk 0:00:45]}  Rxa8 {[%clk 0:00:06]} 55. Rxa8 {[%clk 0:00:45]}  Kxa8 {[%clk 0:00:07]} 56. Kxh5 {[%clk 0:00:46]} 1-0


[Site "https://www.chess.com"]

[Event "Titled Tuesday Blitz May 03 Early 2022"]
[White "Cherniaiev, Tykhon"]
[Black "Paravyan, David"]
[WhiteFideId "14182360"]
[BlackFideId "4194985"]
[WhiteElo "2289"]
[BlackElo "2569"]
[Result "0-1"]
[Round "09"]
[TimeControl "180+1"]
[Date "2022.05.03"]
[WhiteClock "0:00:09"]
[BlackClock "0:02:23"]

1. Nf3 {[%clk 0:03:00]}  Nf6 {[%clk 0:02:59]} 2. c4 {[%clk 0:03:00]}  c5 {[%clk 0:02:59]} 3. g3 {[%clk 0:02:59]}  d5 {[%clk 0:02:59]} 4. cxd5 {[%clk 0:02:59]}  Nxd5 {[%clk 0:03:00]} 5. Bg2 {[%clk 0:02:59]}  Nc6 {[%clk 0:03:00]} 6. O-O {[%clk 0:02:59]}  e5 {[%clk 0:03:00]} 7. Nc3 {[%clk 0:03:00]}  Be6 {[%clk 0:03:00]} 8. d3 {[%clk 0:03:00]}  Be7 {[%clk 0:03:00]} 9. Bd2 {[%clk 0:02:59]}  O-O {[%clk 0:02:59]} 10. Rc1 {[%clk 0:03:00]}  Nxc3 {[%clk 0:02:58]} 11. Bxc3 {[%clk 0:02:59]}  f6 {[%clk 0:02:58]} 12. a3 {[%clk 0:02:59]}  Qd7 {[%clk 0:02:58]} 13. Nd2 {[%clk 0:02:58]}  Rab8 {[%clk 0:02:55]} 14. b3 {[%clk 0:02:52]}  Rfc8 {[%clk 0:02:53]} 15. Bb2 {[%clk 0:02:31]}  Bf8 {[%clk 0:02:50]} 16. f4 {[%clk 0:01:46]}  exf4 {[%clk 0:02:44]} 17. Rxf4 {[%clk 0:01:47]}  Nd4 {[%clk 0:02:44]} 18. Ne4 {[%clk 0:01:39]}  Be7 {[%clk 0:02:33]} 19. Qf1 {[%clk 0:01:15]}  f5 {[%clk 0:02:27]} 20. Nxc5 {[%clk 0:01:03]}  Bxc5 {[%clk 0:02:24]} 21. Rxc5 {[%clk 0:01:03]}  Nxe2+ {[%clk 0:02:19]} 22. Qxe2 {[%clk 0:01:04]}  Rxc5 {[%clk 0:02:19]} 23. Rd4 {[%clk 0:01:00]}  Qf7 {[%clk 0:02:16]} 24. b4 {[%clk 0:00:57]}  Rc7 {[%clk 0:02:12]} 25. Rd6 {[%clk 0:00:36]}  Re8 {[%clk 0:02:12]} 26. h4 {[%clk 0:00:28]}  Rd7 {[%clk 0:02:11]} 27. Rxd7 {[%clk 0:00:25]}  Bxd7 {[%clk 0:02:12]} 28. Qf2 {[%clk 0:00:23]}  Bc6 {[%clk 0:02:12]} 29. Bxc6 {[%clk 0:00:23]}  bxc6 {[%clk 0:02:13]} 30. Kh2 {[%clk 0:00:19]}  h5 {[%clk 0:02:12]} 31. Kg1 {[%clk 0:00:13]}  Kh7 {[%clk 0:02:12]} 32. Qf3 {[%clk 0:00:11]}  Qg6 {[%clk 0:02:09]} 33. Bd4 {[%clk 0:00:09]}  a6 {[%clk 0:02:09]} 34. Bf2 {[%clk 0:00:09]}  Re6 {[%clk 0:02:09]} 35. a4 {[%clk 0:00:08]}  Qg4 {[%clk 0:02:10]} 36. Qxg4 {[%clk 0:00:08]}  hxg4 {[%clk 0:02:10]} 37. Kf1 {[%clk 0:00:08]}  g5 {[%clk 0:02:08]} 38. hxg5 {[%clk 0:00:08]}  Kg6 {[%clk 0:02:09]} 39. Be1 {[%clk 0:00:09]}  Kxg5 {[%clk 0:02:08]} 40. Bd2+ {[%clk 0:00:09]}  Kf6 {[%clk 0:02:09]} 41. Bf4 {[%clk 0:00:10]}  Ke7 {[%clk 0:02:09]} 42. Kf2 {[%clk 0:00:10]}  Kd7 {[%clk 0:02:10]} 43. Bb8 {[%clk 0:00:10]}  Kc8 {[%clk 0:02:08]} 44. Bf4 {[%clk 0:00:11]}  Kb7 {[%clk 0:02:09]} 45. Kf1 {[%clk 0:00:11]}  Kb6 {[%clk 0:02:09]} 46. Bd2 {[%clk 0:00:10]}  c5 {[%clk 0:02:09]} 47. bxc5+ {[%clk 0:00:09]}  Kxc5 {[%clk 0:02:09]} 48. Bc3 {[%clk 0:00:05]}  Re3 {[%clk 0:02:09]} 49. Bb2 {[%clk 0:00:02]}  Rxd3 {[%clk 0:02:08]} 50. Be5 {[%clk 0:00:03]}  Rf3+ {[%clk 0:02:09]} 51. Ke2 {[%clk 0:00:03]}  Kb4 {[%clk 0:02:09]} 52. Bd6+ {[%clk 0:00:03]}  Ka5 {[%clk 0:02:10]} 53. Be5 {[%clk 0:00:03]}  Kxa4 {[%clk 0:02:11]} 54. Bd6 {[%clk 0:00:04]}  Kb5 {[%clk 0:02:12]} 55. Be5 {[%clk 0:00:04]}  Kc4 {[%clk 0:02:13]} 56. Bd6 {[%clk 0:00:05]}  a5 {[%clk 0:02:13]} 57. Be5 {[%clk 0:00:05]}  a4 {[%clk 0:02:14]} 58. Bd6 {[%clk 0:00:06]}  Kb3 {[%clk 0:02:15]} 59. Be5 {[%clk 0:00:07]}  a3 {[%clk 0:02:16]} 60. Bd6 {[%clk 0:00:07]}  a2 {[%clk 0:02:17]} 61. Be5 {[%clk 0:00:08]}  Kc2 {[%clk 0:02:18]} 62. Bd4 {[%clk 0:00:07]}  Kb1 {[%clk 0:02:19]} 63. Be5 {[%clk 0:00:07]}  Rb3 {[%clk 0:02:19]} 64. Bd4 {[%clk 0:00:07]}  Rxg3 {[%clk 0:02:20]} 65. Be5 {[%clk 0:00:07]}  Rf3 {[%clk 0:02:21]} 66. Bd4 {[%clk 0:00:08]}  Rb3 {[%clk 0:02:21]} 67. Be5 {[%clk 0:00:08]}  g3 {[%clk 0:02:21]} 68. Kf1 {[%clk 0:00:07]}  f4 {[%clk 0:02:22]} 69. Kg2 {[%clk 0:00:08]}  Rd3 {[%clk 0:02:21]} 70. Kf1 {[%clk 0:00:07]}  f3 {[%clk 0:02:22]} 71. Bxg3 {[%clk 0:00:07]}  a1=Q {[%clk 0:02:22]} 72. Kf2 {[%clk 0:00:08]}  Qa2+ {[%clk 0:02:22]} 73. Kf1 {[%clk 0:00:08]}  Qe2+ {[%clk 0:02:23]} 74. Kg1 {[%clk 0:00:09]}  Qg2# {[%clk 0:02:23]} 0-1


[Site "https://www.chess.com"]

[Event "Titled Tuesday Blitz May 03 Early 2022"]
[White "Chernomordik, Pavel"]
[Black "Trost, Edvin"]
[WhiteFideId "2804530"]
[BlackFideId "1729519"]
[WhiteElo "2220"]
[BlackElo "2160"]
[Result "1-0"]
[Round "09"]
[TimeControl "180+1"]
[Date "2022.05.03"]
[WhiteClock "0:00:04"]
[BlackClock "0:00:40"]

1. e4 {[%clk 0:03:00]}  g5 {[%clk 0:02:52]} 2. d3 {[%clk 0:02:53]}  e6 {[%clk 0:02:51]} 3. Nc3 {[%clk 0:02:47]}  Bg7 {[%clk 0:02:49]} 4. Qh5 {[%clk 0:02:42]}  h6 {[%clk 0:02:48]} 5. h4 {[%clk 0:02:40]}  Nf6 {[%clk 0:02:47]} 6. Qe2 {[%clk 0:02:39]}  g4 {[%clk 0:02:44]} 7. e5 {[%clk 0:02:35]}  Nd5 {[%clk 0:02:44]} 8. Nxd5 {[%clk 0:02:21]}  exd5 {[%clk 0:02:45]} 9. Qxg4 {[%clk 0:02:16]}  Bxe5 {[%clk 0:02:42]} 10. Nf3 {[%clk 0:02:15]}  d6 {[%clk 0:02:30]} 11. Qa4+ {[%clk 0:02:12]}  Bd7 {[%clk 0:02:30]} 12. Qb3 {[%clk 0:02:11]}  Bg7 {[%clk 0:02:31]} 13. Qxd5 {[%clk 0:01:58]}  O-O {[%clk 0:02:27]} 14. d4 {[%clk 0:01:46]}  Nc6 {[%clk 0:02:19]} 15. c3 {[%clk 0:01:44]}  a6 {[%clk 0:02:07]} 16. Bd3 {[%clk 0:01:39]}  Re8+ {[%clk 0:02:06]} 17. Be3 {[%clk 0:01:37]}  Be6 {[%clk 0:01:37]} 18. Qh5 {[%clk 0:01:30]}  Qc8 {[%clk 0:01:04]} 19. Nh2 {[%clk 0:01:22]}  f5 {[%clk 0:00:58]} 20. O-O-O {[%clk 0:01:12]}  Bf7 {[%clk 0:00:50]} 21. Qxf5 {[%clk 0:01:05]}  Qxf5 {[%clk 0:00:51]} 22. Bxf5 {[%clk 0:01:05]}  Bxa2 {[%clk 0:00:52]} 23. Kc2 {[%clk 0:00:58]}  Na5 {[%clk 0:00:46]} 24. Ra1 {[%clk 0:00:54]}  Bb3+ {[%clk 0:00:43]} 25. Kc1 {[%clk 0:00:52]}  Nc4 {[%clk 0:00:44]} 26. Re1 {[%clk 0:00:39]}  Re7 {[%clk 0:00:39]} 27. Bc2 {[%clk 0:00:32]}  Bxc2 {[%clk 0:00:36]} 28. Kxc2 {[%clk 0:00:32]}  Rae8 {[%clk 0:00:36]} 29. Bd2 {[%clk 0:00:29]}  Kf7 {[%clk 0:00:28]} 30. b3 {[%clk 0:00:25]}  Nb6 {[%clk 0:00:28]} 31. Rxe7+ {[%clk 0:00:19]}  Rxe7 {[%clk 0:00:29]} 32. Kd3 {[%clk 0:00:19]}  Rd7 {[%clk 0:00:29]} 33. h5 {[%clk 0:00:18]}  Nd5 {[%clk 0:00:30]} 34. Ng4 {[%clk 0:00:17]}  Rd8 {[%clk 0:00:30]} 35. Nxh6+ {[%clk 0:00:16]}  Bxh6 {[%clk 0:00:30]} 36. Bxh6 {[%clk 0:00:15]}  Rh8 {[%clk 0:00:31]} 37. Bd2 {[%clk 0:00:14]}  Rxh5 {[%clk 0:00:32]} 38. c4 {[%clk 0:00:13]}  Nf6 {[%clk 0:00:32]} 39. f3 {[%clk 0:00:10]}  Rh2 {[%clk 0:00:32]} 40. Rg1 {[%clk 0:00:09]}  d5 {[%clk 0:00:31]} 41. Bf4 {[%clk 0:00:08]}  Rh4 {[%clk 0:00:31]} 42. Bxc7 {[%clk 0:00:08]}  dxc4+ {[%clk 0:00:29]} 43. bxc4 {[%clk 0:00:07]}  Nd7 {[%clk 0:00:30]} 44. Bd6 {[%clk 0:00:05]}  Rh6 {[%clk 0:00:30]} 45. Bg3 {[%clk 0:00:04]}  Rg6 {[%clk 0:00:30]} 46. Bf2 {[%clk 0:00:04]}  Ke6 {[%clk 0:00:30]} 47. g4 {[%clk 0:00:04]}  Nf6 {[%clk 0:00:30]} 48. Re1+ {[%clk 0:00:05]}  Kd7 {[%clk 0:00:31]} 49. Bh4 {[%clk 0:00:04]}  Ne8 {[%clk 0:00:31]} 50. Re7+ {[%clk 0:00:03]}  Kc6 {[%clk 0:00:32]} 51. Rxe8 {[%clk 0:00:03]}  b5 {[%clk 0:00:32]} 52. d5+ {[%clk 0:00:02]}  Kc5 {[%clk 0:00:33]} 53. Bf2+ {[%clk 0:00:02]}  Kb4 {[%clk 0:00:33]} 54. c5 {[%clk 0:00:03]}  a5 {[%clk 0:00:34]} 55. c6 {[%clk 0:00:02]}  Rg7 {[%clk 0:00:35]} 56. d6 {[%clk 0:00:02]}  Rf7 {[%clk 0:00:33]} 57. Ke4 {[%clk 0:00:01]}  Rxf3 {[%clk 0:00:34]} 58. Kxf3 {[%clk 0:00:01]}  a4 {[%clk 0:00:35]} 59. d7 {[%clk 0:00:02]}  a3 {[%clk 0:00:36]} 60. d8=Q {[%clk 0:00:03]}  a2 {[%clk 0:00:37]} 61. Qd5 {[%clk 0:00:03]}  a1=Q {[%clk 0:00:38]} 62. Qd4+ {[%clk 0:00:03]}  Qxd4 {[%clk 0:00:38]} 63. Bxd4 {[%clk 0:00:03]}  Kc4 {[%clk 0:00:39]} 64. c7 {[%clk 0:00:03]}  b4 {[%clk 0:00:39]} 65. c8=Q+ {[%clk 0:00:04]}  Kb3 {[%clk 0:00:40]} 66. Re3+ {[%clk 0:00:04]}  Ka4 {[%clk 0:00:40]} 67. Qa6# {[%clk 0:00:04]} 1-0


[Site "https://www.chess.com"]

[Event "Titled Tuesday Blitz May 03 Early 2022"]
[White "Csonka, Balazs"]
[Black "Iljin, Timofey"]
[WhiteFideId "742910"]
[BlackFideId "14110180"]
[WhiteElo "2404"]
[BlackElo "2396"]
[Result "0-1"]
[Round "09"]
[TimeControl "180+1"]
[Date "2022.05.03"]
[WhiteClock "0:00:02"]
[BlackClock "0:00:07"]

1. d4 {[%clk 0:03:00]}  d5 {[%clk 0:02:54]} 2. Nf3 {[%clk 0:02:58]}  Nf6 {[%clk 0:02:53]} 3. Bf4 {[%clk 0:02:58]}  c5 {[%clk 0:02:53]} 4. e3 {[%clk 0:02:58]}  Nc6 {[%clk 0:02:53]} 5. Nbd2 {[%clk 0:02:58]}  Bf5 {[%clk 0:02:52]} 6. dxc5 {[%clk 0:02:54]}  e6 {[%clk 0:02:53]} 7. Nd4 {[%clk 0:02:54]}  Bxc5 {[%clk 0:02:50]} 8. Nxf5 {[%clk 0:02:54]}  exf5 {[%clk 0:02:51]} 9. c3 {[%clk 0:02:47]}  O-O {[%clk 0:02:50]} 10. Be2 {[%clk 0:02:47]}  Re8 {[%clk 0:02:50]} 11. Bg5 {[%clk 0:02:45]}  h6 {[%clk 0:02:50]} 12. Bxf6 {[%clk 0:02:39]}  Qxf6 {[%clk 0:02:50]} 13. g3 {[%clk 0:02:40]}  Rad8 {[%clk 0:02:42]} 14. O-O {[%clk 0:02:35]}  g5 {[%clk 0:02:42]} 15. Nb3 {[%clk 0:02:07]}  Bd6 {[%clk 0:02:41]} 16. Bb5 {[%clk 0:02:00]}  f4 {[%clk 0:02:40]} 17. exf4 {[%clk 0:01:44]}  gxf4 {[%clk 0:02:41]} 18. Qg4+ {[%clk 0:01:13]}  Kh8 {[%clk 0:02:40]} 19. Bxc6 {[%clk 0:01:05]}  bxc6 {[%clk 0:02:41]} 20. Nd4 {[%clk 0:01:05]}  Be5 {[%clk 0:02:36]} 21. Nf3 {[%clk 0:01:00]}  Rg8 {[%clk 0:02:35]} 22. Qh5 {[%clk 0:00:57]}  Bc7 {[%clk 0:02:35]} 23. Rae1 {[%clk 0:00:50]}  Rg7 {[%clk 0:02:24]} 24. Kh1 {[%clk 0:00:36]}  Rdg8 {[%clk 0:02:20]} 25. Ne5 {[%clk 0:00:36]}  Kh7 {[%clk 0:01:53]} 26. Nd7 {[%clk 0:00:34]}  Qg6 {[%clk 0:01:28]} 27. Qxg6+ {[%clk 0:00:26]}  Rxg6 {[%clk 0:01:29]} 28. Re7 {[%clk 0:00:25]}  Kg7 {[%clk 0:01:22]} 29. Rfe1 {[%clk 0:00:23]}  Bd6 {[%clk 0:00:51]} 30. R7e2 {[%clk 0:00:23]}  Rc8 {[%clk 0:00:40]} 31. Ne5 {[%clk 0:00:20]}  Bxe5 {[%clk 0:00:36]} 32. Rxe5 {[%clk 0:00:21]}  fxg3 {[%clk 0:00:37]} 33. hxg3 {[%clk 0:00:20]}  Rd6 {[%clk 0:00:38]} 34. Kg2 {[%clk 0:00:18]}  Rb8 {[%clk 0:00:33]} 35. b3 {[%clk 0:00:18]}  a5 {[%clk 0:00:33]} 36. Re7 {[%clk 0:00:16]}  a4 {[%clk 0:00:28]} 37. bxa4 {[%clk 0:00:15]}  Ra8 {[%clk 0:00:26]} 38. Rc7 {[%clk 0:00:03]}  Rxa4 {[%clk 0:00:27]} 39. Ree7 {[%clk 0:00:02]}  Rf6 {[%clk 0:00:28]} 40. f4 {[%clk 0:00:01]}  Rxa2+ {[%clk 0:00:27]} 41. Kh3 {[%clk 0:00:01]}  Rc2 {[%clk 0:00:28]} 42. c4 {[%clk 0:00:01]}  Rxc4 {[%clk 0:00:28]} 43. Kg4 {[%clk 0:00:02]}  Rc3 {[%clk 0:00:27]} 44. Red7 {[%clk 0:00:02]}  Rg6+ {[%clk 0:00:25]} 45. Kh5 {[%clk 0:00:01]}  Rf6 {[%clk 0:00:23]} 46. Kg4 {[%clk 0:00:01]}  h5+ {[%clk 0:00:19]} 47. Kh4 {[%clk 0:00:02]}  Rc1 {[%clk 0:00:14]} 48. Kh3 {[%clk 0:00:02]}  Rc4 {[%clk 0:00:11]} 49. Kh4 {[%clk 0:00:01]}  Kg6 {[%clk 0:00:11]} 50. Kh3 {[%clk 0:00:01]}  d4 {[%clk 0:00:10]} 51. Rd8 {[%clk 0:00:02]}  c5 {[%clk 0:00:10]} 52. Rg8+ {[%clk 0:00:02]}  Kf5 {[%clk 0:00:10]} 53. Rg5+ {[%clk 0:00:02]}  Ke4 {[%clk 0:00:11]} 54. Re5+ {[%clk 0:00:03]}  Kf3 {[%clk 0:00:11]} 55. Rxh5 {[%clk 0:00:02]}  Rc1 {[%clk 0:00:10]} 56. Kh2 {[%clk 0:00:02]}  c4 {[%clk 0:00:09]} 57. Rd5 {[%clk 0:00:03]}  d3 {[%clk 0:00:09]} 58. Rxd3+ {[%clk 0:00:03]}  cxd3 {[%clk 0:00:09]} 59. Rxc1 {[%clk 0:00:03]}  d2 {[%clk 0:00:10]} 60. Ra1 {[%clk 0:00:03]}  Ra6 {[%clk 0:00:09]} 61. Rxa6 {[%clk 0:00:02]}  d1=Q {[%clk 0:00:09]} 62. Ra3+ {[%clk 0:00:03]}  Kg4 {[%clk 0:00:08]} 63. Ra2 {[%clk 0:00:03]}  Qf3 {[%clk 0:00:06]} 64. Rg2 {[%clk 0:00:03]}  f5 {[%clk 0:00:05]} 65. Rg1 {[%clk 0:00:02]}  Qe2+ {[%clk 0:00:06]} 66. Rg2 {[%clk 0:00:02]}  Qe8 {[%clk 0:00:06]} 67. Rg1 {[%clk 0:00:01]}  Kf3 {[%clk 0:00:06]} 68. Rf1+ {[%clk 0:00:01]}  Ke2 {[%clk 0:00:06]} 69. Rg1 {[%clk 0:00:02]}  Qa8 {[%clk 0:00:06]} 70. Rg2+ {[%clk 0:00:02]}  Kf1 {[%clk 0:00:06]} 71. Rg1+ {[%clk 0:00:02]}  Kf2 {[%clk 0:00:07]} 72. Kh3 {[%clk 0:00:02]}  Kxg1 {[%clk 0:00:06]} 73. Kh4 {[%clk 0:00:02]}  Qg8 {[%clk 0:00:07]} 0-1


[Site "https://www.chess.com"]

[Event "Titled Tuesday Blitz May 03 Early 2022"]
[White "Djordjevic, Vuk"]
[Black "Pasti, Aron"]
[WhiteFideId "902098"]
[BlackFideId "785857"]
[WhiteElo "2496"]
[BlackElo "2133"]
[Result "1-0"]
[Round "09"]
[TimeControl "180+1"]
[Date "2022.05.03"]
[WhiteClock "0:00:03"]
[BlackClock "0:00:02"]

1. d4 {[%clk 0:03:00]}  d5 {[%clk 0:02:58]} 2. Bf4 {[%clk 0:03:00]}  c5 {[%clk 0:02:57]} 3. e3 {[%clk 0:03:00]}  Nc6 {[%clk 0:02:57]} 4. c3 {[%clk 0:03:00]}  a6 {[%clk 0:02:57]} 5. Nd2 {[%clk 0:02:58]}  Qb6 {[%clk 0:02:56]} 6. Qb3 {[%clk 0:02:54]}  Qa7 {[%clk 0:02:57]} 7. Qxd5 {[%clk 0:02:47]}  cxd4 {[%clk 0:02:57]} 8. exd4 {[%clk 0:02:46]}  Nf6 {[%clk 0:02:57]} 9. Qb3 {[%clk 0:02:29]}  e5 {[%clk 0:02:56]} 10. Bxe5 {[%clk 0:02:18]}  Nxe5 {[%clk 0:02:53]} 11. dxe5 {[%clk 0:02:17]}  Ng4 {[%clk 0:02:53]} 12. Nh3 {[%clk 0:02:13]}  Bc5 {[%clk 0:02:51]} 13. Ne4 {[%clk 0:02:10]}  O-O {[%clk 0:02:48]} 14. Be2 {[%clk 0:02:00]}  Nxe5 {[%clk 0:02:47]} 15. Nf4 {[%clk 0:01:48]}  Bb6 {[%clk 0:02:18]} 16. O-O {[%clk 0:01:37]}  Bf5 {[%clk 0:02:16]} 17. Ng3 {[%clk 0:01:25]}  Bg6 {[%clk 0:02:15]} 18. Rad1 {[%clk 0:01:10]}  Rae8 {[%clk 0:02:04]} 19. Nxg6 {[%clk 0:00:47]}  Nxg6 {[%clk 0:02:03]} 20. Qc2 {[%clk 0:00:48]}  Nh4 {[%clk 0:01:56]} 21. Bc4 {[%clk 0:00:45]}  Qb8 {[%clk 0:01:53]} 22. Rd7 {[%clk 0:00:43]}  Qf4 {[%clk 0:01:51]} 23. b3 {[%clk 0:00:37]}  Rd8 {[%clk 0:01:37]} 24. Rxd8 {[%clk 0:00:33]}  Rxd8 {[%clk 0:01:36]} 25. Qe4 {[%clk 0:00:34]}  Qf6 {[%clk 0:01:26]} 26. Bd3 {[%clk 0:00:33]}  g6 {[%clk 0:01:25]} 27. c4 {[%clk 0:00:31]}  Rd4 {[%clk 0:01:23]} 28. Qe2 {[%clk 0:00:29]}  Qd8 {[%clk 0:01:16]} 29. Rd1 {[%clk 0:00:28]}  Rf4 {[%clk 0:01:04]} 30. Bc2 {[%clk 0:00:26]}  Qg5 {[%clk 0:00:50]} 31. Rf1 {[%clk 0:00:23]}  h5 {[%clk 0:00:44]} 32. Be4 {[%clk 0:00:22]}  Qe7 {[%clk 0:00:36]} 33. Qd3 {[%clk 0:00:19]}  Bc5 {[%clk 0:00:33]} 34. Bd5 {[%clk 0:00:18]}  Kh7 {[%clk 0:00:30]} 35. Qe2 {[%clk 0:00:18]}  Qf6 {[%clk 0:00:27]} 36. Ne4 {[%clk 0:00:18]}  Qe7 {[%clk 0:00:24]} 37. g3 {[%clk 0:00:17]}  Nf3+ {[%clk 0:00:24]} 38. Kg2 {[%clk 0:00:17]}  Rf5 {[%clk 0:00:22]} 39. Qxf3 {[%clk 0:00:11]}  Rxf3 {[%clk 0:00:22]} 40. Kxf3 {[%clk 0:00:12]}  f5 {[%clk 0:00:21]} 41. Nxc5 {[%clk 0:00:11]}  Qxc5 {[%clk 0:00:20]} 42. Bxb7 {[%clk 0:00:11]}  Qa3 {[%clk 0:00:20]} 43. Re1 {[%clk 0:00:09]}  Qxa2 {[%clk 0:00:20]} 44. Re3 {[%clk 0:00:09]}  Qa3 {[%clk 0:00:19]} 45. Kg2 {[%clk 0:00:09]}  Kh6 {[%clk 0:00:19]} 46. h4 {[%clk 0:00:09]}  a5 {[%clk 0:00:19]} 47. Bd5 {[%clk 0:00:08]}  Kg7 {[%clk 0:00:18]} 48. Rd3 {[%clk 0:00:05]}  Qc5 {[%clk 0:00:17]} 49. Re3 {[%clk 0:00:05]}  Qa3 {[%clk 0:00:17]} 50. Bf3 {[%clk 0:00:05]}  Kf6 {[%clk 0:00:16]} 51. Bc6 {[%clk 0:00:05]}  Qc5 {[%clk 0:00:16]} 52. Bd5 {[%clk 0:00:04]}  Qd4 {[%clk 0:00:15]} 53. Rf3 {[%clk 0:00:04]}  Ke5 {[%clk 0:00:14]} 54. Bc6 {[%clk 0:00:04]}  Kd6 {[%clk 0:00:14]} 55. Be8 {[%clk 0:00:04]}  Qf6 {[%clk 0:00:12]} 56. Bb5 {[%clk 0:00:04]}  Kc5 {[%clk 0:00:12]} 57. Ba4 {[%clk 0:00:04]}  Kb4 {[%clk 0:00:12]} 58. Re3 {[%clk 0:00:04]}  f4 {[%clk 0:00:12]} 59. Rf3 {[%clk 0:00:04]}  Qe6 {[%clk 0:00:03]} 60. Rxf4 {[%clk 0:00:04]}  Qe5 {[%clk 0:00:03]} 61. Kh2 {[%clk 0:00:05]}  Qe1 {[%clk 0:00:03]} 62. Kg2 {[%clk 0:00:05]}  Qe5 {[%clk 0:00:03]} 63. Kh2 {[%clk 0:00:04]}  Qb2 {[%clk 0:00:03]} 64. Rf3 {[%clk 0:00:04]}  Qe2 {[%clk 0:00:03]} 65. Rf6 {[%clk 0:00:03]}  Qe4 {[%clk 0:00:03]} 66. Rf4 {[%clk 0:00:02]}  Qe5 {[%clk 0:00:02]} 67. Kg2 {[%clk 0:00:02]}  Qe1 {[%clk 0:00:02]} 68. c5+ {[%clk 0:00:01]}  Kxc5 {[%clk 0:00:02]} 69. Rc4+ {[%clk 0:00:02]}  Kb6 {[%clk 0:00:02]} 70. Rf4 {[%clk 0:00:03]} 1-0


[Site "https://www.chess.com"]